{"text_format":"1","workbook":"xlsx","n_sheets":4,"sheets":["Données","A porter seul","A partager","A donner"],"not_rendered":{"charts":0,"images":0,"macros":1,"external_links":0,"defined_names":1,"comments":0,"pivot_tables":0},"unopened":[],"bounds":{"document_bytes":16777216,"sheet_cells":100000,"rows_first":2000,"rows_last":500,"rows_between":2000,"halvings":0,"cell_chars":16384,"cell_head_chars":4096},"cells_cut":0,"cells_raw":0,"read":"whole","date_system":"1900"}

{"sheet":"Données","index":0,"n_rows":166,"n_cols":15,"rows_kept":166,"cut":false,"hidden":false,"merged":[]}
[]
[null,"Tableau automatique : Transpose"]
[null,"Costume n°","Nom du costume/rôle endossé","Symbole qui représente ce costume (figurine, vêtements, objet distinctif)","Utilité sur 10 / objectif visé\n(0 = inutile, 10 = indispensable)","Pourquoi ce costume est utile / objectif ?\n(lier ce costume à une valeur haute = qui augmente votre énergie)","Poids ressenti sur 10\n(0 = très léger, 10 = trop lourd)","Quand doit-il être porté ? \n(Situations, contextes, lieux, horaires précis, niveau d'énergie requis, etc.)","Avec qui doit-il être porté ?\n(membres de votre famille, amis, collègues, supérieurs, etc.)","Combien d’heures doit-il être porté min. / max. par jour/ semaine/ mois/ année ?\n(pour atteindre l'objectif)","Action 1","Action 2","Action 3","Action 4","Action 5"]
[null,1,"Leader","Cravate",10,"Car",10,"- En réunion\n- En rdv avec les clients X et F","Avec les membres du CA","5h max./jour","Répondre aux mails & aux appels importants","Présenter les résultats de l'entreprise","Définir et valider la vision/stratégie à moyen et à long terme pour l'entreprise","Gérer des rdv avec les clients/partenaires/fournisseurs/ etc.","Appeler des clients/ partenaires/ fournisseurs/ etc."]
[null,2,"Manager (en interne)","Casquette spécifique",9,0,9,0,0,"5h min./semaine","Communiquer les actions prioritaires à mes équipes directes.","Encourager et motiver toutes les personnes que je manage.","Informer Mme J, M. O, et l'équipe X, des actions à entreprendre cette semaine","Communiquer les objectifs à atteindre aux directeurs des différents services/ unités/ départements.","Déléguer le travail 1 et 2 à Mme O."]
[null,3,"Partenaire commercial (à l'externe)","Bracelet, amulette",10,0,8,0,0,"2h min./semaine","Répondre aux principaux partenaires externes de l'entreprise","Gérer la relation avec les fournisseurs","Gérer la relation avec les clients","Gérer la relation avec la presse","A compléter costume 3 Action 5"]
[null,4,"Mari / Amant","Anneau, bracelet, amulette, paire de lunettes, style de vêtement",8,0,8,0,0,"24h min./semaine (2h/jour en semaine + 7h/jour les we)","Communiquer régulièrement avec elle/lui","Accorder x heures par jour/semaine à elle/lui","Répondre à ses demandes/messages/sollicitations","A compléter costume 4 Action 4","A compléter costume 4 Action 5"]
[null,5,"Père","Casquette spécifique, tee shirt spécifique",8,0,7,0,0,"24h min./semaine (2h/jour en semaine + 7h/jour les we)","Assurer les déplacements de mon/mes enfant(s)","M'assurer que mon/mes enfant(s) à des vêtements propres à mettre chaque jour.","Accompagner mon/mes enfant(s) à ses activités extra-scolaires.","Assurer l'éducation de mon enfant.","Assurer un environnement sain, propre et sécurisé pour mon/mes enfant(s)"]
[null,6,"Alice","Robe bleu ciel et tablier blanc",10,0,2,0,0,"5h max./jour","Traverser le miroir.","Se lancer à la poursuite du lapin blanc.","Rencontrer Tweedle Dee & Tweedle Dum.","Aller chez le lapin blanc.","Traverser un champ de fleurs."]
[null,7,"Ami / copain (vie sociale)","Type de pull",6,0,5,0,0,"2h min./semaine","Passer du temps avec mes ami(e)s","Rencontrer de nouvelles personnes","Appeler/écrire à mes ami(e)s X, Z, et A au moins 1 fois/mois.","Répondre à mes ami(e)s dans les 3 jours.","A compléter costume 7 Action 5"]
[null,8,"Loisirs (activités, clubs, etc.)","Porte clé qui représente votre activité",6,0,4,0,0,"1h min./semaine","Lire 30 minutes/semaine un livre \"plaisir\".","Participer au carnaval de ma ville avec mon enfant.","Prendre 7 jours de vacances tous les 3 mois.","Pratiquer une activité qui me plaît chaque semaine, pendant x heures minimum.","Visiter des expositions/lieux/musées"]
[null,9,"Dormeur","Pyjama",10,0,9,0,0,"7h min./jour","Suivre un rituel du coucher identique tous les soirs.","Ne pas regarder d'écrans au moins 1h avant de me coucher.","Me lever chaque matin à une heure fixe.","Méditer, visualiser, ou prendre un temps calme chaque jour de 10 minutes au réveil / à 13h00 / au coucher.","Manger léger tous les soirs du lundi au vendredi, sans sucre ni café."]
[null,10,"Sportif","Statut, effigie, photo, portrait d'un sportif inspirant",7,0,9,0,0,"2h min./semaine","Acheter mes tenues et mon matériel de sport.","Courir 2 fois / semaine pendant 30 minutes minimum.","M'étirer 10 minutes tous les soirs à 21h00.","A compléter costume 10 Action 4","A compléter costume 10 Action 5"]
[null,"","","","","","","","","","","","","",""]
[]
[]
[null,"Pour formules :"]
[null,"A porter seul"]
[null,"A donner"]
[null,"A partager"]
[null,"Sous-action 1"]
[null,"Sous-action 2"]
[null,"Sous-action 3"]
[null,"Sous-action 4"]
[null,"Sous-action 5"]
[null,"Sous-action 6"]
[null,"Sous-action 7"]
[null,"Sous-action 8"]
[null,"Sous-action 9"]
[null,"Sous-action 10"]
[null," = Quoi faire ?"]
[]
[]
[]
[]
[null,{"$f":"+B$3","v":"Costume n°"},{"$f":"+C$3","v":"Nom du costume/rôle endossé"},{"$f":"+K$3","v":"Action 1"},{"$f":"+L$3","v":"Action 2"},"Action 3","Action 4","Action 5"]
[null,{"$f":"+B4","v":1},{"$f":"+C4","v":"Leader"},{"$f":"+K4","v":"Répondre aux mails & aux appels importants"},"Présenter les résultats de l'entreprise","Définir et valider la vision/stratégie à moyen et à long terme pour l'entreprise","Gérer des rdv avec les clients/partenaires/fournisseurs/ etc.","Appeler des clients/ partenaires/ fournisseurs/ etc."]
[null,{"$f":"+$B$37","v":1},"Utilité de cette action sur 10 / objectif ?",9,8,9,10,6]
[null,1,"Pourquoi cette action est-elle utile ou inutile ? Bénéfices réels/ objectif ?","Parce que XXX","Car xxx","Car ggg","Parce que FFF","Car JJJ"]
[null,1,{"$f":"$B$21","v":"Sous-action 1"},"Répondre aux clients","S'assurer que les résultats sont corrects",{"$f":"\"A compléter costume \"&$B40&\" \"&F$36&\" \"&Tableau14[[#This Row],[Colonne2]]","v":"A compléter costume 1 Action 3 Sous-action 1"},{"$f":"\"A compléter costume \"&$B40&\" \"&G$36&\" \"&Tableau14[[#This Row],[Colonne2]]","v":"A compléter costume 1 Action 4 Sous-action 1"},{"$f":"\"A compléter costume \"&$B40&\" \"&H$36&\" \"&Tableau14[[#This Row],[Colonne2]]","v":"A compléter costume 1 Action 5 Sous-action 1"}]
[null,1,{"$f":"C40&$B$31","v":"Sous-action 1 = Quoi faire ?"},"A partager","A porter seul","A partager","A partager","A porter seul"]
[null,1,{"$f":"$B$22","v":"Sous-action 2"},"Répondre aux fournisseurs","Anticiper le travail à produire par les équipes",{"$f":"\"A compléter costume \"&$B42&\" \"&F$36&\" \"&Tableau14[[#This Row],[Colonne2]]","v":"A compléter costume 1 Action 3 Sous-action 2"},{"$f":"\"A compléter costume \"&$B42&\" \"&G$36&\" \"&Tableau14[[#This Row],[Colonne2]]","v":"A compléter costume 1 Action 4 Sous-action 2"},{"$f":"\"A compléter costume \"&$B42&\" \"&H$36&\" \"&Tableau14[[#This Row],[Colonne2]]","v":"A compléter costume 1 Action 5 Sous-action 2"}]
[null,1,{"$f":"C42&$B$31","v":"Sous-action 2 = Quoi faire ?"},"A donner","A partager","A partager","A porter seul","A partager"]
[null,1,{"$f":"$B$23","v":"Sous-action 3"},"Répondre aux demandes nouvelles venant de l'externe",{"$f":"\"A compléter costume \"&$B44&\" \"&E$36&\" \"&Tableau14[[#This Row],[Colonne2]]","v":"A compléter costume 1 Action 2 Sous-action 3"},{"$f":"\"A compléter costume \"&$B44&\" \"&F$36&\" \"&Tableau14[[#This Row],[Colonne2]]","v":"A compléter costume 1 Action 3 Sous-action 3"},{"$f":"\"A compléter costume \"&$B44&\" \"&G$36&\" \"&Tableau14[[#This Row],[Colonne2]]","v":"A compléter costume 1 Action 4 Sous-action 3"},{"$f":"\"A compléter costume \"&$B44&\" \"&H$36&\" \"&Tableau14[[#This Row],[Colonne2]]","v":"A compléter costume 1 Action 5 Sous-action 3"}]
[null,1,{"$f":"C44&$B$31","v":"Sous-action 3 = Quoi faire ?"},"A donner","A partager","A donner","A donner","A porter seul"]
[null,1,{"$f":"$B$24","v":"Sous-action 4"},"Répondre aux clients internes",{"$f":"\"A compléter costume \"&$B46&\" \"&E$36&\" \"&Tableau14[[#This Row],[Colonne2]]","v":"A compléter costume 1 Action 2 Sous-action 4"},{"$f":"\"A compléter costume \"&$B46&\" \"&F$36&\" \"&Tableau14[[#This Row],[Colonne2]]","v":"A compléter costume 1 Action 3 Sous-action 4"},{"$f":"\"A compléter costume \"&$B46&\" \"&G$36&\" \"&Tableau14[[#This Row],[Colonne2]]","v":"A compléter costume 1 Action 4 Sous-action 4"},{"$f":"\"A compléter costume \"&$B46&\" \"&H$36&\" \"&Tableau14[[#This Row],[Colonne2]]","v":"A compléter costume 1 Action 5 Sous-action 4"}]
[null,1,{"$f":"C46&$B$31","v":"Sous-action 4 = Quoi faire ?"},"A partager","A porter seul","A porter seul","A partager","A partager"]
[null,1,{"$f":"$B$25","v":"Sous-action 5"},"Répondre à la Presse",{"$f":"\"A compléter costume \"&$B48&\" \"&E$36&\" \"&Tableau14[[#This Row],[Colonne2]]","v":"A compléter costume 1 Action 2 Sous-action 5"},{"$f":"\"A compléter costume \"&$B48&\" \"&F$36&\" \"&Tableau14[[#This Row],[Colonne2]]","v":"A compléter costume 1 Action 3 Sous-action 5"},{"$f":"\"A compléter costume \"&$B48&\" \"&G$36&\" \"&Tableau14[[#This Row],[Colonne2]]","v":"A compléter costume 1 Action 4 Sous-action 5"},{"$f":"\"A compléter costume \"&$B48&\" \"&H$36&\" \"&Tableau14[[#This Row],[Colonne2]]","v":"A compléter costume 1 Action 5 Sous-action 5"}]
[null,1,{"$f":"C48&$B$31","v":"Sous-action 5 = Quoi faire ?"},"A partager","A partager","A partager","A donner","A porter seul"]
[null,{"$f":"+B5","v":2},{"$f":"+C5","v":"Manager (en interne)"},{"$f":"+K5","v":"Communiquer les actions prioritaires à mes équipes directes."},{"$f":"+L5","v":"Encourager et motiver toutes les personnes que je manage."},"Informer Mme J, M. O, et l'équipe X, des actions à entreprendre cette semaine",{"$f":"+N5","v":"Communiquer les objectifs à atteindre aux directeurs des différents services/ unités/ départements."},"Déléguer le travail 1 et 2 à Mme O."]
[null,{"$f":"+$B$50","v":2},"Utilité de cette action sur 10 / objectif ?",6,7,8]
[null,2,"Pourquoi cette action est-elle utile ou inutile ? Bénéfices réels/ objectif ?","Car jjj","Parce que ooo"]
[null,2,{"$f":"$B$21","v":"Sous-action 1"},{"$f":"\"A compléter costume \"&$B53&\" \"&D$36&\" \"&$C53","v":"A compléter costume 2 Action 1 Sous-action 1"},"A compléter costume 2 Action 2 Sous-action 1","A compléter costume 2 Action 3 Sous-action 1","A compléter costume 2 Action 4 Sous-action 1","A compléter costume 2 Action 5 Sous-action 1"]
[null,2,{"$f":"C53&$B$31","v":"Sous-action 1 = Quoi faire ?"},"A partager","A porter seul","A porter seul","A donner","A porter seul"]
[null,2,{"$f":"$B$22","v":"Sous-action 2"},{"$f":"\"A compléter costume \"&$B55&\" \"&D$36&\" \"&$C55","v":"A compléter costume 2 Action 1 Sous-action 2"},"A compléter costume 2 Action 2 Sous-action 2","A compléter costume 2 Action 3 Sous-action 2","A compléter costume 2 Action 4 Sous-action 2","A compléter costume 2 Action 5 Sous-action 2"]
[null,2,{"$f":"C55&$B$31","v":"Sous-action 2 = Quoi faire ?"},"A porter seul","A donner","A partager","A porter seul","A porter seul"]
[null,2,{"$f":"$B$23","v":"Sous-action 3"},{"$f":"\"A compléter costume \"&$B57&\" \"&D$36&\" \"&$C57","v":"A compléter costume 2 Action 1 Sous-action 3"},"A compléter costume 2 Action 2 Sous-action 3","A compléter costume 2 Action 3 Sous-action 3","A compléter costume 2 Action 4 Sous-action 3","A compléter costume 2 Action 5 Sous-action 3"]
[null,2,{"$f":"C57&$B$31","v":"Sous-action 3 = Quoi faire ?"},"A partager","A porter seul","A porter seul","A porter seul","A porter seul"]
[null,2,{"$f":"$B$24","v":"Sous-action 4"},{"$f":"\"A compléter costume \"&$B59&\" \"&D$36&\" \"&$C59","v":"A compléter costume 2 Action 1 Sous-action 4"},"A compléter costume 2 Action 2 Sous-action 4","A compléter costume 2 Action 3 Sous-action 4","A compléter costume 2 Action 4 Sous-action 4","A compléter costume 2 Action 5 Sous-action 4"]
[null,2,{"$f":"C59&$B$31","v":"Sous-action 4 = Quoi faire ?"},"A partager","A partager","A donner","A porter seul","A partager"]
[null,2,{"$f":"$B$25","v":"Sous-action 5"},{"$f":"\"A compléter costume \"&$B61&\" \"&D$36&\" \"&$C61","v":"A compléter costume 2 Action 1 Sous-action 5"},"A compléter costume 2 Action 2 Sous-action 5","A compléter costume 2 Action 3 Sous-action 5","A compléter costume 2 Action 4 Sous-action 5","A compléter costume 2 Action 5 Sous-action 5"]
[null,2,{"$f":"C61&$B$31","v":"Sous-action 5 = Quoi faire ?"},"A donner","A porter seul","A porter seul","A partager","A porter seul"]
[null,{"$f":"+B6","v":3},{"$f":"+C6","v":"Partenaire commercial (à l'externe)"},{"$f":"+K6","v":"Répondre aux principaux partenaires externes de l'entreprise"},{"$f":"+L6","v":"Gérer la relation avec les fournisseurs"},{"$f":"+M6","v":"Gérer la relation avec les clients"},{"$f":"+N6","v":"Gérer la relation avec la presse"},{"$f":"+O6","v":"A compléter costume 3 Action 5"}]
[null,{"$f":"+$B$63","v":3},"Utilité de cette action sur 10 / objectif ?"]
[null,3,"Pourquoi cette action est-elle utile ou inutile ? Bénéfices réels/ objectif ?"]
[null,3,{"$f":"$B$21","v":"Sous-action 1"},{"$f":"\"A compléter costume \"&$B66&\" \"&D$36&\" \"&$C66","v":"A compléter costume 3 Action 1 Sous-action 1"},"A compléter costume 3 Action 2 Sous-action 1","A compléter costume 3 Action 3 Sous-action 1","A compléter costume 3 Action 4 Sous-action 1","A compléter costume 3 Action 5 Sous-action 1"]
[null,3,{"$f":"C66&$B$31","v":"Sous-action 1 = Quoi faire ?"},"A donner","A porter seul","A partager","A partager","A donner"]
[null,3,{"$f":"$B$22","v":"Sous-action 2"},{"$f":"\"A compléter costume \"&$B68&\" \"&D$36&\" \"&$C68","v":"A compléter costume 3 Action 1 Sous-action 2"},"A compléter costume 3 Action 2 Sous-action 2","A compléter costume 3 Action 3 Sous-action 2","A compléter costume 3 Action 4 Sous-action 2","A compléter costume 3 Action 5 Sous-action 2"]
[null,3,{"$f":"C68&$B$31","v":"Sous-action 2 = Quoi faire ?"},"A porter seul","A porter seul","A porter seul","A porter seul","A partager"]
[null,3,{"$f":"$B$23","v":"Sous-action 3"},{"$f":"\"A compléter costume \"&$B70&\" \"&D$36&\" \"&$C70","v":"A compléter costume 3 Action 1 Sous-action 3"},"A compléter costume 3 Action 2 Sous-action 3","A compléter costume 3 Action 3 Sous-action 3","A compléter costume 3 Action 4 Sous-action 3","A compléter costume 3 Action 5 Sous-action 3"]
[null,3,{"$f":"C70&$B$31","v":"Sous-action 3 = Quoi faire ?"},"A porter seul","A porter seul","A donner","A partager","A porter seul"]
[null,3,{"$f":"$B$24","v":"Sous-action 4"},{"$f":"\"A compléter costume \"&$B72&\" \"&D$36&\" \"&$C72","v":"A compléter costume 3 Action 1 Sous-action 4"},"A compléter costume 3 Action 2 Sous-action 4","A compléter costume 3 Action 3 Sous-action 4","A compléter costume 3 Action 4 Sous-action 4","A compléter costume 3 Action 5 Sous-action 4"]
[null,3,{"$f":"C72&$B$31","v":"Sous-action 4 = Quoi faire ?"},"A porter seul","A porter seul","A partager","A partager","A partager"]
[null,3,{"$f":"$B$25","v":"Sous-action 5"},{"$f":"\"A compléter costume \"&$B74&\" \"&D$36&\" \"&$C74","v":"A compléter costume 3 Action 1 Sous-action 5"},"A compléter costume 3 Action 2 Sous-action 5","A compléter costume 3 Action 3 Sous-action 5","A compléter costume 3 Action 4 Sous-action 5","A compléter costume 3 Action 5 Sous-action 5"]
[null,3,{"$f":"C74&$B$31","v":"Sous-action 5 = Quoi faire ?"},"A donner","A partager","A porter seul","A partager","A porter seul"]
[null,{"$f":"+B7","v":4},{"$f":"+C7","v":"Mari / Amant"},{"$f":"+K7","v":"Communiquer régulièrement avec elle/lui"},{"$f":"+L7","v":"Accorder x heures par jour/semaine à elle/lui"},{"$f":"+M7","v":"Répondre à ses demandes/messages/sollicitations"},{"$f":"+N7","v":"A compléter costume 4 Action 4"},{"$f":"+O7","v":"A compléter costume 4 Action 5"}]
[null,{"$f":"+$B$76","v":4},"Utilité de cette action sur 10 / objectif ?",7,5,8,6,7]
[null,4,"Pourquoi cette action est-elle utile ou inutile ? Bénéfices réels/ objectif ?","Parce que hhh","Car ooo","Parce que pppp"]
[null,4,{"$f":"$B$21","v":"Sous-action 1"},{"$f":"\"A compléter costume \"&$B79&\" \"&D$36&\" \"&$C79","v":"A compléter costume 4 Action 1 Sous-action 1"},{"$f":"\"A compléter costume \"&$B79&\" \"&E$36&\" \"&$C79","v":"A compléter costume 4 Action 2 Sous-action 1"},{"$f":"\"A compléter costume \"&$B79&\" \"&F$36&\" \"&$C79","v":"A compléter costume 4 Action 3 Sous-action 1"},{"$f":"\"A compléter costume \"&$B79&\" \"&G$36&\" \"&$C79","v":"A compléter costume 4 Action 4 Sous-action 1"},{"$f":"\"A compléter costume \"&$B79&\" \"&H$36&\" \"&$C79","v":"A compléter costume 4 Action 5 Sous-action 1"}]
[null,4,{"$f":"C79&$B$31","v":"Sous-action 1 = Quoi faire ?"},"A donner","A partager","A partager","A porter seul","A partager"]
[null,4,{"$f":"$B$22","v":"Sous-action 2"},{"$f":"\"A compléter costume \"&$B81&\" \"&D$36&\" \"&$C81","v":"A compléter costume 4 Action 1 Sous-action 2"},{"$f":"\"A compléter costume \"&$B81&\" \"&E$36&\" \"&$C81","v":"A compléter costume 4 Action 2 Sous-action 2"},{"$f":"\"A compléter costume \"&$B81&\" \"&F$36&\" \"&$C81","v":"A compléter costume 4 Action 3 Sous-action 2"},{"$f":"\"A compléter costume \"&$B81&\" \"&G$36&\" \"&$C81","v":"A compléter costume 4 Action 4 Sous-action 2"},"A compléter costume 4 Action 5 Sous-action 2"]
[null,4,{"$f":"C81&$B$31","v":"Sous-action 2 = Quoi faire ?"},"A porter seul","A porter seul","A porter seul","A porter seul","A partager"]
[null,4,{"$f":"$B$23","v":"Sous-action 3"},{"$f":"\"A compléter costume \"&$B83&\" \"&D$36&\" \"&$C83","v":"A compléter costume 4 Action 1 Sous-action 3"},{"$f":"\"A compléter costume \"&$B83&\" \"&E$36&\" \"&$C83","v":"A compléter costume 4 Action 2 Sous-action 3"},{"$f":"\"A compléter costume \"&$B83&\" \"&F$36&\" \"&$C83","v":"A compléter costume 4 Action 3 Sous-action 3"},{"$f":"\"A compléter costume \"&$B83&\" \"&G$36&\" \"&$C83","v":"A compléter costume 4 Action 4 Sous-action 3"},"A compléter costume 4 Action 5 Sous-action 3"]
[null,4,{"$f":"C83&$B$31","v":"Sous-action 3 = Quoi faire ?"},"A porter seul","A porter seul","A partager","A porter seul","A porter seul"]
[null,4,{"$f":"$B$24","v":"Sous-action 4"},{"$f":"\"A compléter costume \"&$B85&\" \"&D$36&\" \"&$C85","v":"A compléter costume 4 Action 1 Sous-action 4"},{"$f":"\"A compléter costume \"&$B85&\" \"&E$36&\" \"&$C85","v":"A compléter costume 4 Action 2 Sous-action 4"},{"$f":"\"A compléter costume \"&$B85&\" \"&F$36&\" \"&$C85","v":"A compléter costume 4 Action 3 Sous-action 4"},{"$f":"\"A compléter costume \"&$B85&\" \"&G$36&\" \"&$C85","v":"A compléter costume 4 Action 4 Sous-action 4"},"A compléter costume 4 Action 5 Sous-action 4"]
[null,4,{"$f":"C85&$B$31","v":"Sous-action 4 = Quoi faire ?"},"A donner","A partager","A donner","A partager","A donner"]
[null,4,{"$f":"$B$25","v":"Sous-action 5"},{"$f":"\"A compléter costume \"&$B87&\" \"&D$36&\" \"&$C87","v":"A compléter costume 4 Action 1 Sous-action 5"},{"$f":"\"A compléter costume \"&$B87&\" \"&E$36&\" \"&$C87","v":"A compléter costume 4 Action 2 Sous-action 5"},{"$f":"\"A compléter costume \"&$B87&\" \"&F$36&\" \"&$C87","v":"A compléter costume 4 Action 3 Sous-action 5"},{"$f":"\"A compléter costume \"&$B87&\" \"&G$36&\" \"&$C87","v":"A compléter costume 4 Action 4 Sous-action 5"},"A compléter costume 4 Action 5 Sous-action 5"]
[null,4,{"$f":"C87&$B$31","v":"Sous-action 5 = Quoi faire ?"},"A partager","A donner","A partager","A porter seul","A partager"]
[null,{"$f":"+B8","v":5},{"$f":"+C8","v":"Père"},{"$f":"+K8","v":"Assurer les déplacements de mon/mes enfant(s)"},{"$f":"+L8","v":"M'assurer que mon/mes enfant(s) à des vêtements propres à mettre chaque jour."},{"$f":"+M8","v":"Accompagner mon/mes enfant(s) à ses activités extra-scolaires."},{"$f":"+N8","v":"Assurer l'éducation de mon enfant."},{"$f":"+O8","v":"Assurer un environnement sain, propre et sécurisé pour mon/mes enfant(s)"}]
[null,{"$f":"+$B$89","v":5},"Utilité de cette action sur 10 / objectif ?",4,6,8,7,7]
[null,5,"Pourquoi cette action est-elle utile ou inutile ? Bénéfices réels/ objectif ?"]
[null,5,{"$f":"$B$21","v":"Sous-action 1"},"Aller chercher mon enfant à l'école chaque lundi et mardi soir.",{"$f":"\"A compléter costume \"&$B92&\" \"&E$36&\" \"&$C92","v":"A compléter costume 5 Action 2 Sous-action 1"},"A compléter costume 5 Action 3 Sous-action 1","A compléter costume 5 Action 4 Sous-action 1","A compléter costume 5 Action 5 Sous-action 1"]
[null,5,{"$f":"C92&$B$31","v":"Sous-action 1 = Quoi faire ?"},"A partager","A partager","A partager","A partager","A partager"]
[null,5,{"$f":"$B$22","v":"Sous-action 2"},{"$f":"\"A compléter costume \"&$B94&\" \"&D$36&\" \"&$C94","v":"A compléter costume 5 Action 1 Sous-action 2"},"A compléter costume 5 Action 2 Sous-action 2","A compléter costume 5 Action 3 Sous-action 2","A compléter costume 5 Action 4 Sous-action 2","A compléter costume 5 Action 5 Sous-action 2"]
[null,5,{"$f":"C94&$B$31","v":"Sous-action 2 = Quoi faire ?"},"A partager","A partager","A partager","A partager","A partager"]
[null,5,{"$f":"$B$23","v":"Sous-action 3"},{"$f":"\"A compléter costume \"&$B96&\" \"&D$36&\" \"&$C96","v":"A compléter costume 5 Action 1 Sous-action 3"},"A compléter costume 5 Action 2 Sous-action 3","A compléter costume 5 Action 3 Sous-action 3","A compléter costume 5 Action 4 Sous-action 3","A compléter costume 5 Action 5 Sous-action 3"]
[null,5,{"$f":"C96&$B$31","v":"Sous-action 3 = Quoi faire ?"},"A partager","A partager","A donner","A donner","A partager"]
[null,5,{"$f":"$B$24","v":"Sous-action 4"},{"$f":"\"A compléter costume \"&$B98&\" \"&D$36&\" \"&$C98","v":"A compléter costume 5 Action 1 Sous-action 4"},"A compléter costume 5 Action 2 Sous-action 4","A compléter costume 5 Action 3 Sous-action 4","A compléter costume 5 Action 4 Sous-action 4","A compléter costume 5 Action 5 Sous-action 4"]
[null,5,{"$f":"C98&$B$31","v":"Sous-action 4 = Quoi faire ?"},"A porter seul","A partager","A partager","A partager","A partager"]
[null,5,{"$f":"$B$25","v":"Sous-action 5"},{"$f":"\"A compléter costume \"&$B100&\" \"&D$36&\" \"&$C100","v":"A compléter costume 5 Action 1 Sous-action 5"},"A compléter costume 5 Action 2 Sous-action 5","A compléter costume 5 Action 3 Sous-action 5","A compléter costume 5 Action 4 Sous-action 5","A compléter costume 5 Action 5 Sous-action 5"]
[null,5,{"$f":"C100&$B$31","v":"Sous-action 5 = Quoi faire ?"},"A porter seul","A porter seul","A partager","A porter seul","A partager"]
[null,6,"Alice",{"$f":"K9","v":"Traverser le miroir."},"Se lancer à la poursuite du lapin blanc.","Rencontrer Tweedle Dee & Tweedle Dum.","Aller chez le lapin blanc.","Traverser un champ de fleurs."]
[null,6,"Utilité de cette action sur 10 / objectif ?",10,8,6,10,5]
[null,6,"Pourquoi cette action est-elle utile ou inutile ? Bénéfices réels/ objectif ?","A compléter","A compléter","A compléter","A compléter","A compléter"]
[null,6,{"$f":"B21","v":"Sous-action 1"},{"$f":"\"A compléter costume \"&$B105&\" \"&D36&\" \"&$C105","v":"A compléter costume 6 Action 1 Sous-action 1"},{"$f":"\"A compléter costume \"&$B105&\" \"&E36&\" \"&$C105","v":"A compléter costume 6 Action 2 Sous-action 1"},{"$f":"\"A compléter costume \"&$B105&\" \"&F36&\" \"&$C105","v":"A compléter costume 6 Action 3 Sous-action 1"},{"$f":"\"A compléter costume \"&$B105&\" \"&G36&\" \"&$C105","v":"A compléter costume 6 Action 4 Sous-action 1"},{"$f":"\"A compléter costume \"&$B105&\" \"&H36&\" \"&$C105","v":"A compléter costume 6 Action 5 Sous-action 1"}]
[null,6,{"$f":"C105&B31","v":"Sous-action 1 = Quoi faire ?"},"A porter seul","A partager","A donner","A porter seul","A partager"]
[null,6,{"$f":"B22","v":"Sous-action 2"},{"$f":"\"A compléter costume \"&$B107&\" \"&D36&\" \"&$C107","v":"A compléter costume 6 Action 1 Sous-action 2"},{"$f":"\"A compléter costume \"&$B107&\" \"&E36&\" \"&$C107","v":"A compléter costume 6 Action 2 Sous-action 2"},{"$f":"\"A compléter costume \"&$B107&\" \"&F36&\" \"&$C107","v":"A compléter costume 6 Action 3 Sous-action 2"},{"$f":"\"A compléter costume \"&$B107&\" \"&G36&\" \"&$C107","v":"A compléter costume 6 Action 4 Sous-action 2"},{"$f":"\"A compléter costume \"&$B107&\" \"&H36&\" \"&$C107","v":"A compléter costume 6 Action 5 Sous-action 2"}]
[null,6,{"$f":"C107&B31","v":"Sous-action 2 = Quoi faire ?"},"A partager","A donner","A porter seul","A partager","A donner"]
[null,6,{"$f":"B23","v":"Sous-action 3"},{"$f":"\"A compléter costume \"&$B109&\" \"&D36&\" \"&$C109","v":"A compléter costume 6 Action 1 Sous-action 3"},{"$f":"\"A compléter costume \"&$B109&\" \"&E36&\" \"&$C109","v":"A compléter costume 6 Action 2 Sous-action 3"},{"$f":"\"A compléter costume \"&$B109&\" \"&F36&\" \"&$C109","v":"A compléter costume 6 Action 3 Sous-action 3"},{"$f":"\"A compléter costume \"&$B109&\" \"&G36&\" \"&$C109","v":"A compléter costume 6 Action 4 Sous-action 3"},{"$f":"\"A compléter costume \"&$B109&\" \"&H36&\" \"&$C109","v":"A compléter costume 6 Action 5 Sous-action 3"}]
[null,6,{"$f":"C109&B31","v":"Sous-action 3 = Quoi faire ?"},"A donner","A porter seul","A partager","A donner","A porter seul"]
[null,6,{"$f":"B24","v":"Sous-action 4"},{"$f":"\"A compléter costume \"&$B111&\" \"&D36&\" \"&$C111","v":"A compléter costume 6 Action 1 Sous-action 4"},{"$f":"\"A compléter costume \"&$B111&\" \"&E36&\" \"&$C111","v":"A compléter costume 6 Action 2 Sous-action 4"},{"$f":"\"A compléter costume \"&$B111&\" \"&F36&\" \"&$C111","v":"A compléter costume 6 Action 3 Sous-action 4"},{"$f":"\"A compléter costume \"&$B111&\" \"&G36&\" \"&$C111","v":"A compléter costume 6 Action 4 Sous-action 4"},{"$f":"\"A compléter costume \"&$B111&\" \"&H36&\" \"&$C111","v":"A compléter costume 6 Action 5 Sous-action 4"}]
[null,6,{"$f":"C111&B31","v":"Sous-action 4 = Quoi faire ?"},"A porter seul","A partager","A donner","A porter seul","A partager"]
[null,6,{"$f":"B25","v":"Sous-action 5"},{"$f":"\"A compléter costume \"&$B113&\" \"&D36&\" \"&$C113","v":"A compléter costume 6 Action 1 Sous-action 5"},{"$f":"\"A compléter costume \"&$B113&\" \"&E36&\" \"&$C113","v":"A compléter costume 6 Action 2 Sous-action 5"},{"$f":"\"A compléter costume \"&$B113&\" \"&F36&\" \"&$C113","v":"A compléter costume 6 Action 3 Sous-action 5"},{"$f":"\"A compléter costume \"&$B113&\" \"&G36&\" \"&$C113","v":"A compléter costume 6 Action 4 Sous-action 5"},{"$f":"\"A compléter costume \"&$B113&\" \"&H36&\" \"&$C113","v":"A compléter costume 6 Action 5 Sous-action 5"}]
[null,6,{"$f":"C113&B31","v":"Sous-action 5 = Quoi faire ?"},"A partager","A donner","A porter seul","A partager","A donner"]
[null,{"$f":"+B10","v":7},{"$f":"+C10","v":"Ami / copain (vie sociale)"},{"$f":"+K10","v":"Passer du temps avec mes ami(e)s"},{"$f":"+L10","v":"Rencontrer de nouvelles personnes"},{"$f":"+M10","v":"Appeler/écrire à mes ami(e)s X, Z, et A au moins 1 fois/mois."},{"$f":"+N10","v":"Répondre à mes ami(e)s dans les 3 jours."},{"$f":"+O10","v":"A compléter costume 7 Action 5"}]
[null,{"$f":"+$B$115","v":7},"Utilité de cette action sur 10 / objectif ?"]
[null,7,"Pourquoi cette action est-elle utile ou inutile ? Bénéfices réels/ objectif ?","Parce que ggg","Car wwww","Parce que iii"]
[null,7,{"$f":"$B$21","v":"Sous-action 1"},{"$f":"\"A compléter costume \"&$B118&\" \"&D$36&\" \"&$C118","v":"A compléter costume 7 Action 1 Sous-action 1"},"A compléter costume 7 Action 2 Sous-action 1","A compléter costume 7 Action 3 Sous-action 1","A compléter costume 7 Action 4 Sous-action 1","A compléter costume 7 Action 5 Sous-action 1"]
[null,7,{"$f":"C118&$B$31","v":"Sous-action 1 = Quoi faire ?"},"A partager","A porter seul","A partager","A partager","A partager"]
[null,7,{"$f":"$B$22","v":"Sous-action 2"},"A compléter costume 7 Action 1 Sous-action 2","A compléter costume 7 Action 2 Sous-action 2","A compléter costume 7 Action 3 Sous-action 2","A compléter costume 7 Action 4 Sous-action 2","A compléter costume 7 Action 5 Sous-action 2"]
[null,7,{"$f":"C120&$B$31","v":"Sous-action 2 = Quoi faire ?"},"A porter seul","A porter seul","A partager","A partager","A porter seul"]
[null,7,{"$f":"$B$23","v":"Sous-action 3"},"A compléter costume 7 Action 1 Sous-action 3","A compléter costume 7 Action 2 Sous-action 3","A compléter costume 7 Action 3 Sous-action 3","A compléter costume 7 Action 4 Sous-action 3","A compléter costume 7 Action 5 Sous-action 3"]
[null,7,{"$f":"C122&$B$31","v":"Sous-action 3 = Quoi faire ?"},"A partager","A partager","A partager","A partager","A donner"]
[null,7,{"$f":"$B$24","v":"Sous-action 4"},"A compléter costume 7 Action 1 Sous-action 4","A compléter costume 7 Action 2 Sous-action 4","A compléter costume 7 Action 3 Sous-action 4","A compléter costume 7 Action 4 Sous-action 4","A compléter costume 7 Action 5 Sous-action 4"]
[null,7,{"$f":"C124&$B$31","v":"Sous-action 4 = Quoi faire ?"},"A partager","A partager","A partager","A partager","A partager"]
[null,7,{"$f":"$B$25","v":"Sous-action 5"},"A compléter costume 7 Action 1 Sous-action 5","A compléter costume 7 Action 2 Sous-action 5","A compléter costume 7 Action 3 Sous-action 5","A compléter costume 7 Action 4 Sous-action 5","A compléter costume 7 Action 5 Sous-action 5"]
[null,7,{"$f":"C126&$B$31","v":"Sous-action 5 = Quoi faire ?"},"A donner","A partager","A porter seul","A donner","A porter seul"]
[null,{"$f":"+B11","v":8},{"$f":"+C11","v":"Loisirs (activités, clubs, etc.)"},{"$f":"+K11","v":"Lire 30 minutes/semaine un livre \"plaisir\"."},{"$f":"+L11","v":"Participer au carnaval de ma ville avec mon enfant."},{"$f":"+M11","v":"Prendre 7 jours de vacances tous les 3 mois."},{"$f":"+N11","v":"Pratiquer une activité qui me plaît chaque semaine, pendant x heures minimum."},{"$f":"+O11","v":"Visiter des expositions/lieux/musées"}]
[null,{"$f":"+$B$128","v":8},"Utilité de cette action sur 10 / objectif ?"]
[null,8,"Pourquoi cette action est-elle utile ou inutile ? Bénéfices réels/ objectif ?"]
[null,8,{"$f":"$B$21","v":"Sous-action 1"},{"$f":"\"A compléter costume \"&$B131&\" \"&D$36&\" \"&$C131","v":"A compléter costume 8 Action 1 Sous-action 1"},"A compléter costume 8 Action 2 Sous-action 1","A compléter costume 8 Action 3 Sous-action 1","A compléter costume 8 Action 4 Sous-action 1","A compléter costume 8 Action 5 Sous-action 1"]
[null,8,{"$f":"C131&$B$31","v":"Sous-action 1 = Quoi faire ?"},"A porter seul","A partager","A partager","A donner","A porter seul"]
[null,8,{"$f":"$B$22","v":"Sous-action 2"},{"$f":"\"A compléter costume \"&$B133&\" \"&D$36&\" \"&$C133","v":"A compléter costume 8 Action 1 Sous-action 2"},"A compléter costume 8 Action 2 Sous-action 2","A compléter costume 8 Action 3 Sous-action 2","A compléter costume 8 Action 4 Sous-action 2","A compléter costume 8 Action 5 Sous-action 2"]
[null,8,{"$f":"C133&$B$31","v":"Sous-action 2 = Quoi faire ?"},"A porter seul","A porter seul","A porter seul","A partager","A porter seul"]
[null,8,{"$f":"$B$23","v":"Sous-action 3"},{"$f":"\"A compléter costume \"&$B135&\" \"&D$36&\" \"&$C135","v":"A compléter costume 8 Action 1 Sous-action 3"},"A compléter costume 8 Action 2 Sous-action 3","A compléter costume 8 Action 3 Sous-action 3","A compléter costume 8 Action 4 Sous-action 3","A compléter costume 8 Action 5 Sous-action 3"]
[null,8,{"$f":"C135&$B$31","v":"Sous-action 3 = Quoi faire ?"},"A donner","A partager","A donner","A partager","A porter seul"]
[null,8,{"$f":"$B$24","v":"Sous-action 4"},{"$f":"\"A compléter costume \"&$B137&\" \"&D$36&\" \"&$C137","v":"A compléter costume 8 Action 1 Sous-action 4"},"A compléter costume 8 Action 2 Sous-action 4","A compléter costume 8 Action 3 Sous-action 4","A compléter costume 8 Action 4 Sous-action 4","A compléter costume 8 Action 5 Sous-action 4"]
[null,8,{"$f":"C137&$B$31","v":"Sous-action 4 = Quoi faire ?"},"A porter seul","A porter seul","A partager","A porter seul","A porter seul"]
[null,8,{"$f":"$B$25","v":"Sous-action 5"},{"$f":"\"A compléter costume \"&$B139&\" \"&D$36&\" \"&$C139","v":"A compléter costume 8 Action 1 Sous-action 5"},"A compléter costume 8 Action 2 Sous-action 5","A compléter costume 8 Action 3 Sous-action 5","A compléter costume 8 Action 4 Sous-action 5","A compléter costume 8 Action 5 Sous-action 5"]
[null,8,{"$f":"C139&$B$31","v":"Sous-action 5 = Quoi faire ?"},"A partager","A donner","A partager","A partager","A partager"]
[null,{"$f":"+B12","v":9},{"$f":"+C12","v":"Dormeur"},{"$f":"+K12","v":"Suivre un rituel du coucher identique tous les soirs."},{"$f":"+L12","v":"Ne pas regarder d'écrans au moins 1h avant de me coucher."},{"$f":"+M12","v":"Me lever chaque matin à une heure fixe."},{"$f":"+N12","v":"Méditer, visualiser, ou prendre un temps calme chaque jour de 10 minutes au réveil / à 13h00 / au coucher."},{"$f":"+O12","v":"Manger léger tous les soirs du lundi au vendredi, sans sucre ni café."}]
[null,{"$f":"+$B$141","v":9},"Utilité de cette action sur 10 / objectif ?"]
[null,9,"Pourquoi cette action est-elle utile ou inutile ? Bénéfices réels/ objectif ?"]
[null,9,{"$f":"$B$21","v":"Sous-action 1"},"Me coucher chaque soir à heure fixe.",{"$f":"\"A compléter costume \"&$B144&\" \"&E$36&\" \"&$C144","v":"A compléter costume 9 Action 2 Sous-action 1"},"A compléter costume 9 Action 3 Sous-action 1","A compléter costume 9 Action 4 Sous-action 1","A compléter costume 9 Action 5 Sous-action 1"]
[null,9,{"$f":"C144&$B$31","v":"Sous-action 1 = Quoi faire ?"},"A porter seul","A partager","A partager","A partager","A porter seul"]
[null,9,{"$f":"$B$22","v":"Sous-action 2"},{"$f":"\"A compléter costume \"&$B146&\" \"&D$36&\" \"&$C146","v":"A compléter costume 9 Action 1 Sous-action 2"},"A compléter costume 9 Action 2 Sous-action 2","A compléter costume 9 Action 3 Sous-action 2","A compléter costume 9 Action 4 Sous-action 2","A compléter costume 9 Action 5 Sous-action 2"]
[null,9,{"$f":"C146&$B$31","v":"Sous-action 2 = Quoi faire ?"},"A donner","A porter seul","A porter seul","A porter seul","A porter seul"]
[null,9,{"$f":"$B$23","v":"Sous-action 3"},{"$f":"\"A compléter costume \"&$B148&\" \"&D$36&\" \"&$C148","v":"A compléter costume 9 Action 1 Sous-action 3"},"A compléter costume 9 Action 2 Sous-action 3","A compléter costume 9 Action 3 Sous-action 3","A compléter costume 9 Action 4 Sous-action 3","A compléter costume 9 Action 5 Sous-action 3"]
[null,9,{"$f":"C148&$B$31","v":"Sous-action 3 = Quoi faire ?"},"A donner","A porter seul","A porter seul","A porter seul","A porter seul"]
[null,9,{"$f":"$B$24","v":"Sous-action 4"},{"$f":"\"A compléter costume \"&$B150&\" \"&D$36&\" \"&$C150","v":"A compléter costume 9 Action 1 Sous-action 4"},"A compléter costume 9 Action 2 Sous-action 4","A compléter costume 9 Action 3 Sous-action 4","A compléter costume 9 Action 4 Sous-action 4","A compléter costume 9 Action 5 Sous-action 4"]
[null,9,{"$f":"C150&$B$31","v":"Sous-action 4 = Quoi faire ?"},"A porter seul","A porter seul","A porter seul","A porter seul","A partager"]
[null,9,{"$f":"$B$25","v":"Sous-action 5"},{"$f":"\"A compléter costume \"&$B152&\" \"&D$36&\" \"&$C152","v":"A compléter costume 9 Action 1 Sous-action 5"},"A compléter costume 9 Action 2 Sous-action 5","A compléter costume 9 Action 3 Sous-action 5","A compléter costume 9 Action 4 Sous-action 5","A compléter costume 9 Action 5 Sous-action 5"]
[null,9,{"$f":"C152&$B$31","v":"Sous-action 5 = Quoi faire ?"},"A partager","A partager","A porter seul","A partager","A partager"]
[null,{"$f":"+B13","v":10},{"$f":"+C13","v":"Sportif"},{"$f":"+K13","v":"Acheter mes tenues et mon matériel de sport."},{"$f":"+L13","v":"Courir 2 fois / semaine pendant 30 minutes minimum."},{"$f":"+M13","v":"M'étirer 10 minutes tous les soirs à 21h00."},{"$f":"+N13","v":"A compléter costume 10 Action 4"},{"$f":"+O13","v":"A compléter costume 10 Action 5"}]
[null,{"$f":"+$B$154","v":10},"Utilité de cette action sur 10 / objectif ?"]
[null,10,"Pourquoi cette action est-elle utile ou inutile ? Bénéfices réels/ objectif ?"]
[null,10,{"$f":"$B$21","v":"Sous-action 1"},{"$f":"\"A compléter costume \"&$B157&\" \"&D$36&\" \"&$C157","v":"A compléter costume 10 Action 1 Sous-action 1"},"A compléter costume 10 Action 2 Sous-action 1","A compléter costume 10 Action 3 Sous-action 1","A compléter costume 10 Action 4 Sous-action 1","A compléter costume 10 Action 5 Sous-action 1"]
[null,10,{"$f":"C157&$B$31","v":"Sous-action 1 = Quoi faire ?"},"A partager","A partager","A partager","A partager","A donner"]
[null,10,{"$f":"$B$22","v":"Sous-action 2"},{"$f":"\"A compléter costume \"&$B159&\" \"&D$36&\" \"&$C159","v":"A compléter costume 10 Action 1 Sous-action 2"},"A compléter costume 10 Action 2 Sous-action 2","A compléter costume 10 Action 3 Sous-action 2","A compléter costume 10 Action 4 Sous-action 2","A compléter costume 10 Action 5 Sous-action 2"]
[null,10,{"$f":"C159&$B$31","v":"Sous-action 2 = Quoi faire ?"},"A donner","A partager","A donner","A partager","A donner"]
[null,10,{"$f":"$B$23","v":"Sous-action 3"},{"$f":"\"A compléter costume \"&$B161&\" \"&D$36&\" \"&$C161","v":"A compléter costume 10 Action 1 Sous-action 3"},"A compléter costume 10 Action 2 Sous-action 3","A compléter costume 10 Action 3 Sous-action 3","A compléter costume 10 Action 4 Sous-action 3","A compléter costume 10 Action 5 Sous-action 3"]
[null,10,{"$f":"C161&$B$31","v":"Sous-action 3 = Quoi faire ?"},"A partager","A partager","A partager","A donner","A porter seul"]
[null,10,{"$f":"$B$24","v":"Sous-action 4"},{"$f":"\"A compléter costume \"&$B163&\" \"&D$36&\" \"&$C163","v":"A compléter costume 10 Action 1 Sous-action 4"},"A compléter costume 10 Action 2 Sous-action 4","A compléter costume 10 Action 3 Sous-action 4","A compléter costume 10 Action 4 Sous-action 4","A compléter costume 10 Action 5 Sous-action 4"]
[null,10,{"$f":"C163&$B$31","v":"Sous-action 4 = Quoi faire ?"},"A donner","A donner","A partager","A partager","A porter seul"]
[null,10,{"$f":"$B$25","v":"Sous-action 5"},{"$f":"\"A compléter costume \"&$B165&\" \"&D$36&\" \"&$C165","v":"A compléter costume 10 Action 1 Sous-action 5"},"A compléter costume 10 Action 2 Sous-action 5","A compléter costume 10 Action 3 Sous-action 5","A compléter costume 10 Action 4 Sous-action 5","A compléter costume 10 Action 5 Sous-action 5"]
[null,10,{"$f":"C165&$B$31","v":"Sous-action 5 = Quoi faire ?"},"A partager","A donner","A partager","A partager","A porter seul"]

{"sheet":"A porter seul","index":1,"n_rows":3,"n_cols":5,"rows_kept":3,"cut":false,"hidden":false,"merged":[]}
[null,"Tableau 1 = synthèse de sous-actions à porter seul :"]
[]
[null,"Costume n°","Nom du rôle-costume","Action","Sous-actions à réaliser vous-même"]

{"sheet":"A partager","index":2,"n_rows":3,"n_cols":5,"rows_kept":3,"cut":false,"hidden":false,"merged":[]}
[null,"Tableau 2 = synthèse de sous-actions à partager :"]
[]
[null,"Costume n°","Nom du rôle-costume","Action","Sous-actions à partager avec d'autres personnes"]

{"sheet":"A donner","index":3,"n_rows":3,"n_cols":5,"rows_kept":3,"cut":false,"hidden":false,"merged":[]}
[null,"Tableau 3 = synthèse de sous-actions à donner :"]
[]
[null,"Costume n°","Nom du rôle-costume","Action","Sous-actions à donner à d'autres personnes"]